[Event "*** SCC Grand Prix: Titled Tuesday Blitz"]
[Site "Chess.com"]
[Date "2020.09.08"]
[Round "7"]
[White "Bayernbk"]
[Black "zajka-molotok"]
[Result "0-1"]
[WhiteElo "2511"]
[BlackElo "2391"]
[TimeControl "180+1"]
[EndTime "11:19:44 PDT"]
[Termination "zajka-molotok won on time"]

1. e4 {[%clk 0:03:00.9]} 1... d6 {[%clk 0:02:54.3]} 2. d4 {[%clk 0:03:00.2]}
2... Nf6 {[%clk 0:02:54.3]} 3. Bd3 {[%clk 0:02:59.9]} 3... e5 {[%clk 0:02:53.2]}
4. Nf3 {[%clk 0:02:55]} 4... Nc6 {[%clk 0:02:48.9]} 5. dxe5 {[%clk 0:02:53.7]}
5... Nxe5 {[%clk 0:02:45.5]} 6. Nxe5 {[%clk 0:02:53.5]} 6... dxe5 {[%clk
0:02:46.4]} 7. O-O {[%clk 0:02:53.4]} 7... Bc5 {[%clk 0:02:44.1]} 8. Qe2 {[%clk
0:02:48.6]} 8... O-O {[%clk 0:02:41.7]} 9. Be3 {[%clk 0:02:48.2]} 9... Qe7
{[%clk 0:02:36]} 10. Nd2 {[%clk 0:02:43.2]} 10... Be6 {[%clk 0:02:26.8]} 11. f3
{[%clk 0:02:36.5]} 11... Nh5 {[%clk 0:02:21.4]} 12. Nb3 {[%clk 0:02:26.6]} 12...
Nf4 {[%clk 0:02:15.8]} 13. Bxc5 {[%clk 0:01:44.3]} 13... Nxe2+ {[%clk
0:02:13.6]} 14. Bxe2 {[%clk 0:01:44.8]} 14... Qg5 {[%clk 0:02:10.8]} 15. Bxf8
{[%clk 0:01:41.4]} 15... Kxf8 {[%clk 0:02:00.9]} 16. Kf2 {[%clk 0:01:35.1]}
16... Rd8 {[%clk 0:01:58.8]} 17. Rad1 {[%clk 0:01:32]} 17... Qh4+ {[%clk
0:01:53.9]} 18. Kg1 {[%clk 0:01:30.6]} 18... Rxd1 {[%clk 0:01:51.2]} 19. Rxd1
{[%clk 0:01:30.7]} 19... b6 {[%clk 0:01:49.7]} 20. g3 {[%clk 0:01:22.2]} 20...
Qg5 {[%clk 0:01:48.6]} 21. Kf2 {[%clk 0:01:21.9]} 21... Qh6 {[%clk 0:01:47.8]}
22. h4 {[%clk 0:01:19.7]} 22... Qf6 {[%clk 0:01:42.1]} 23. Nd2 {[%clk
0:01:13.5]} 23... Qe7 {[%clk 0:01:39.3]} 24. Nf1 {[%clk 0:00:51.4]} 24... Qc5+
{[%clk 0:01:37.1]} 25. Ne3 {[%clk 0:00:52]} 25... a5 {[%clk 0:01:31.9]} 26. b3
{[%clk 0:00:45.2]} 26... a4 {[%clk 0:01:28.8]} 27. bxa4 {[%clk 0:00:43.9]} 27...
Bxa2 {[%clk 0:01:26.7]} 28. Rd3 {[%clk 0:00:44.5]} 28... Bb1 {[%clk 0:01:16.7]}
29. Rd5 {[%clk 0:00:36.9]} 29... Qe7 {[%clk 0:00:51.5]} 30. Nf5 {[%clk
0:00:35.2]} 30... Qf6 {[%clk 0:00:51.7]} 31. g4 {[%clk 0:00:28.5]} 31... h6
{[%clk 0:00:49.6]} 32. h5 {[%clk 0:00:17.6]} 32... Bxc2 {[%clk 0:00:46.3]} 33.
Rd7 {[%clk 0:00:14.8]} 33... Bxa4 {[%clk 0:00:37.6]} 34. Rxc7 {[%clk 0:00:13.5]}
34... Qd8 {[%clk 0:00:35.5]} 35. Rb7 {[%clk 0:00:04.3]} 35... Bc6 {[%clk
0:00:32.4]} 36. Ra7 {[%clk 0:00:03.8]} 36... b5 {[%clk 0:00:31.4]} 37. Kg3
{[%clk 0:00:02.1]} 37... Qb8 {[%clk 0:00:28.5]} 38. Re7 {[%clk 0:00:01.5]} 38...
Be8 {[%clk 0:00:19]} 39. Bd1 {[%clk 0:00:01.1]} 39... g6 {[%clk 0:00:17.7]} 40.
hxg6 {[%clk 0:00:01.4]} 40... fxg6 {[%clk 0:00:17.6]} 41. Rh7 {[%clk 0:00:02.1]}
41... gxf5 {[%clk 0:00:17.3]} 42. gxf5 {[%clk 0:00:02.7]} 42... Qd6 {[%clk
0:00:16.3]} 43. Bb3 {[%clk 0:00:02.4]} 43... Qf6 {[%clk 0:00:16.1]} 44. Rb7
{[%clk 0:00:01.8]} 44... Qg5+ {[%clk 0:00:13.6]} 45. Kf2 {[%clk 0:00:02.2]}
45... h5 {[%clk 0:00:13.5]} 46. Be6 {[%clk 0:00:01.7]} 46... h4 {[%clk
0:00:13.2]} 47. Rh7 {[%clk 0:00:02.3]} 47... Qd2+ {[%clk 0:00:12.2]} 48. Kg1
{[%clk 0:00:01.8]} 48... Qe1+ {[%clk 0:00:11.9]} 49. Kg2 {[%clk 0:00:02.1]}
49... Qg3+ {[%clk 0:00:12]} 50. Kf1 {[%clk 0:00:01.6]} 50... Qxf3+ {[%clk
0:00:12.6]} 51. Kg1 {[%clk 0:00:02.4]} 51... Qg3+ {[%clk 0:00:12.6]} 52. Kf1
{[%clk 0:00:02.7]} 52... h3 {[%clk 0:00:13.1]} 53. f6 {[%clk 0:00:01.8]} 53...
Qf3+ {[%clk 0:00:11.1]} 54. Ke1 {[%clk 0:00:02.3]} 54... Qxf6 {[%clk 0:00:11.4]}
55. Bf5 {[%clk 0:00:02.7]} 55... Qg5 {[%clk 0:00:09.4]} 56. Rh8+ {[%clk
0:00:01.8]} 56... Ke7 {[%clk 0:00:09]} 57. Rh7+ {[%clk 0:00:02.1]} 57... Kd6
{[%clk 0:00:08.8]} 0-1

[Event "*** SCC Grand Prix: Titled Tuesday Blitz"]
[Site "Chess.com"]
[Date "2020.09.08"]
[Round "7"]
[White "Sanan_Sjugirov"]
[Black "Koksik_13"]
[Result "1-0"]
[WhiteElo "2845"]
[BlackElo "2661"]
[TimeControl "180+1"]
[EndTime "11:19:48 PDT"]
[Termination "Sanan_Sjugirov won on time"]

1. e4 {[%clk 0:03:00.9]} 1... e6 {[%clk 0:02:59.6]} 2. d4 {[%clk 0:03:00.3]}
2... d5 {[%clk 0:03:00.1]} 3. Nd2 {[%clk 0:02:56.6]} 3... Nf6 {[%clk 0:02:52.8]}
4. e5 {[%clk 0:02:54.9]} 4... Nfd7 {[%clk 0:02:52.9]} 5. f4 {[%clk 0:02:43.2]}
5... c5 {[%clk 0:02:52.8]} 6. Ngf3 {[%clk 0:02:43.1]} 6... Nc6 {[%clk
0:02:52.8]} 7. Nb3 {[%clk 0:02:40.9]} 7... a5 {[%clk 0:02:45.6]} 8. dxc5 {[%clk
0:02:30.1]} 8... Nxc5 {[%clk 0:02:43.7]} 9. Be3 {[%clk 0:02:26.1]} 9... Ne4
{[%clk 0:02:33.9]} 10. a4 {[%clk 0:02:19.9]} 10... f5 {[%clk 0:02:17.6]} 11. Bb5
{[%clk 0:01:58.8]} 11... Be7 {[%clk 0:02:13]} 12. O-O {[%clk 0:01:58]} 12... O-O
{[%clk 0:02:13]} 13. c3 {[%clk 0:01:36.4]} 13... Bd7 {[%clk 0:02:12.4]} 14. Nbd4
{[%clk 0:01:34.4]} 14... Nxd4 {[%clk 0:02:07.2]} 15. Nxd4 {[%clk 0:01:34.4]}
15... Bc5 {[%clk 0:01:55.2]} 16. Bd3 {[%clk 0:01:23.4]} 16... Qe7 {[%clk
0:01:36.7]} 17. Qe2 {[%clk 0:01:13.9]} 17... Rac8 {[%clk 0:01:33.8]} 18. Nb3
{[%clk 0:01:11.4]} 18... b6 {[%clk 0:01:26.5]} 19. Bxc5 {[%clk 0:00:38.4]} 19...
bxc5 {[%clk 0:01:18]} 20. Nxa5 {[%clk 0:00:35.8]} 20... c4 {[%clk 0:01:14.6]}
21. Bxe4 {[%clk 0:00:35.2]} 21... Qc5+ {[%clk 0:00:52.4]} 22. Qf2 {[%clk
0:00:29.1]} 22... Qxa5 {[%clk 0:00:52.6]} 23. Bc2 {[%clk 0:00:19]} 23... Rb8
{[%clk 0:00:52.7]} 24. Rfb1 {[%clk 0:00:18]} 24... Rb7 {[%clk 0:00:51.6]} 25. h3
{[%clk 0:00:15.2]} 25... Rfb8 {[%clk 0:00:47.1]} 26. Ra2 {[%clk 0:00:15.4]}
26... Qa7 {[%clk 0:00:33.3]} 27. Qxa7 {[%clk 0:00:14.5]} 27... Rxa7 {[%clk
0:00:34.2]} 28. b4 {[%clk 0:00:12.3]} 28... cxb3 {[%clk 0:00:21.5]} 29. Rxb3
{[%clk 0:00:12.3]} 29... Rba8 {[%clk 0:00:20.3]} 30. Rb4 {[%clk 0:00:08.2]}
30... Rc7 {[%clk 0:00:20.1]} 31. Ra3 {[%clk 0:00:06.4]} 31... Ra5 {[%clk
0:00:19.5]} 32. Kf2 {[%clk 0:00:04.1]} 32... Kf7 {[%clk 0:00:19.8]} 33. Ke3
{[%clk 0:00:04.2]} 33... h6 {[%clk 0:00:19.2]} 34. h4 {[%clk 0:00:04.3]} 34...
Rac5 {[%clk 0:00:12.5]} 35. Kd4 {[%clk 0:00:04.4]} 35... g5 {[%clk 0:00:11]} 36.
hxg5 {[%clk 0:00:04.3]} 36... hxg5 {[%clk 0:00:11.7]} 37. g3 {[%clk 0:00:04.8]}
37... gxf4 {[%clk 0:00:11.3]} 38. gxf4 {[%clk 0:00:05.7]} 38... Ra5 {[%clk
0:00:10.8]} 39. Bd3 {[%clk 0:00:05.3]} 39... Rca7 {[%clk 0:00:09.3]} 40. Bc2
{[%clk 0:00:04.9]} 40... Rc7 {[%clk 0:00:10]} 41. Bb3 {[%clk 0:00:05]} 41...
Rca7 {[%clk 0:00:10.1]} 42. c4 {[%clk 0:00:05.1]} 42... dxc4 {[%clk 0:00:08.3]}
43. Rxc4 {[%clk 0:00:06]} 43... Rd5+ {[%clk 0:00:07.9]} 44. Kc3 {[%clk
0:00:06.2]} 44... Rda5 {[%clk 0:00:05.2]} 45. Rd4 {[%clk 0:00:05.9]} 45... Rc5+
{[%clk 0:00:04.9]} 46. Kd2 {[%clk 0:00:06.1]} 46... Ke7 {[%clk 0:00:04.1]} 47.
Bd1 {[%clk 0:00:05.8]} 47... Bc6 {[%clk 0:00:04.1]} 48. Rh3 {[%clk 0:00:04.9]}
48... Bd7 {[%clk 0:00:03.2]} 49. Rh7+ {[%clk 0:00:05]} 49... Kd8 {[%clk
0:00:03.3]} 50. Bb3 {[%clk 0:00:04.5]} 50... Ra6 {[%clk 0:00:01.5]} 51. Rdxd7+
{[%clk 0:00:04.2]} 1-0

[Event "*** SCC Grand Prix: Titled Tuesday Blitz"]
[Site "Chess.com"]
[Date "2020.09.08"]
[Round "7"]
[White "vinniethepooh"]
[Black "elohunter1999"]
[Result "1/2-1/2"]
[WhiteElo "2653"]
[BlackElo "2468"]
[TimeControl "180+1"]
[EndTime "11:19:48 PDT"]
[Termination "Game drawn by repetition"]

1. Nf3 {[%clk 0:03:00.9]} 1... Nf6 {[%clk 0:02:58]} 2. g3 {[%clk 0:03:00.3]}
2... b6 {[%clk 0:02:46.1]} 3. Bg2 {[%clk 0:03:01.2]} 3... Bb7 {[%clk 0:02:45.3]}
4. c4 {[%clk 0:02:57.6]} 4... c5 {[%clk 0:02:45.4]} 5. O-O {[%clk 0:02:55.5]}
5... e6 {[%clk 0:02:45.4]} 6. b3 {[%clk 0:02:53.6]} 6... Be7 {[%clk 0:02:44.6]}
7. Bb2 {[%clk 0:02:52.8]} 7... O-O {[%clk 0:02:44.5]} 8. d4 {[%clk 0:02:49.2]}
8... cxd4 {[%clk 0:02:43]} 9. Nxd4 {[%clk 0:02:50.1]} 9... Bxg2 {[%clk
0:02:40.9]} 10. Kxg2 {[%clk 0:02:51]} 10... Nc6 {[%clk 0:02:29.3]} 11. Nc3
{[%clk 0:02:43.4]} 11... Rc8 {[%clk 0:02:24.5]} 12. e4 {[%clk 0:02:29.7]} 12...
Qc7 {[%clk 0:01:59.5]} 13. Rc1 {[%clk 0:02:25.1]} 13... Qb7 {[%clk 0:01:49]} 14.
Nxc6 {[%clk 0:02:19.2]} 14... Qxc6 {[%clk 0:01:37.8]} 15. Qf3 {[%clk 0:02:18.8]}
15... Rfd8 {[%clk 0:01:30.5]} 16. Rfd1 {[%clk 0:02:14.6]} 16... a6 {[%clk
0:01:28]} 17. h3 {[%clk 0:02:12.3]} 17... Qb7 {[%clk 0:01:25.9]} 18. e5 {[%clk
0:02:08.5]} 18... Qxf3+ {[%clk 0:01:25.3]} 19. Kxf3 {[%clk 0:02:09.4]} 19... Ne8
{[%clk 0:01:26.1]} 20. Ne4 {[%clk 0:02:07.5]} 20... d5 {[%clk 0:01:10.4]} 21.
cxd5 {[%clk 0:01:30.8]} 21... Rxc1 {[%clk 0:01:08.2]} 22. Rxc1 {[%clk
0:01:31.7]} 22... Rxd5 {[%clk 0:01:00.5]} 23. Rc8 {[%clk 0:01:23.9]} 23... Rd8
{[%clk 0:00:56.2]} 24. Rc6 {[%clk 0:01:23.3]} 24... Rb8 {[%clk 0:00:50.3]} 25.
Bd4 {[%clk 0:01:22.9]} 25... Bd8 {[%clk 0:00:49.7]} 26. a4 {[%clk 0:00:21.7]}
26... Kf8 {[%clk 0:00:47]} 27. Ke3 {[%clk 0:00:19.1]} 27... Nc7 {[%clk
0:00:45.4]} 28. Nc3 {[%clk 0:00:14.3]} 28... b5 {[%clk 0:00:39.5]} 29. Bc5+
{[%clk 0:00:03.7]} 29... Ke8 {[%clk 0:00:38.1]} 30. Bd6 {[%clk 0:00:04]} 30...
Kd7 {[%clk 0:00:33.3]} 31. Rc5 {[%clk 0:00:03.5]} 31... Rb7 {[%clk 0:00:33.3]}
32. Ne4 {[%clk 0:00:01.9]} 32... Nd5+ {[%clk 0:00:30.1]} 33. Kd4 {[%clk
0:00:01.6]} 33... Bb6 {[%clk 0:00:29.8]} 34. axb5 {[%clk 0:00:01.4]} 34... axb5
{[%clk 0:00:28.6]} 35. Kd3 {[%clk 0:00:01.8]} 35... Bxc5 {[%clk 0:00:18.5]} 36.
Nxc5+ {[%clk 0:00:02]} 36... Kc6 {[%clk 0:00:18.8]} 37. Nxb7 {[%clk 0:00:02.8]}
37... Kxb7 {[%clk 0:00:19.7]} 38. Bf8 {[%clk 0:00:03.2]} 38... g6 {[%clk
0:00:19.8]} 39. f4 {[%clk 0:00:03.7]} 39... Kc6 {[%clk 0:00:19.8]} 40. Kd4
{[%clk 0:00:04]} 40... Nb6 {[%clk 0:00:15.6]} 41. Ke4 {[%clk 0:00:03.4]} 41...
Nd7 {[%clk 0:00:14.7]} 42. Bd6 {[%clk 0:00:03.7]} 42... Nc5+ {[%clk 0:00:14]}
43. Bxc5 {[%clk 0:00:03.7]} 43... Kxc5 {[%clk 0:00:14.9]} 44. Kd3 {[%clk
0:00:04]} 44... Kd5 {[%clk 0:00:11.5]} 45. b4 {[%clk 0:00:03.2]} 45... Kc6
{[%clk 0:00:10.9]} 46. Kd4 {[%clk 0:00:03.1]} 46... Kb6 {[%clk 0:00:10.6]} 47.
Ke4 {[%clk 0:00:02.8]} 47... Kc6 {[%clk 0:00:10.9]} 48. Kd4 {[%clk 0:00:03.7]}
48... Kb6 {[%clk 0:00:11.2]} 49. g4 {[%clk 0:00:03.9]} 49... Kc6 {[%clk
0:00:11.1]} 50. Ke4 {[%clk 0:00:03.9]} 50... Kc7 {[%clk 0:00:10.6]} 51. f5
{[%clk 0:00:03]} 51... g5 {[%clk 0:00:10.9]} 52. f6 {[%clk 0:00:01.4]} 52... h6
{[%clk 0:00:10.2]} 53. Kd4 {[%clk 0:00:01.6]} 53... Kc6 {[%clk 0:00:10.1]} 54.
Ke4 {[%clk 0:00:02.5]} 54... Kc7 {[%clk 0:00:10.2]} 55. Kd4 {[%clk 0:00:02.4]}
55... Kc6 {[%clk 0:00:10.6]} 56. Ke4 {[%clk 0:00:03.3]} 56... Kc7 {[%clk
0:00:10.9]} 1/2-1/2

[Event "*** SCC Grand Prix: Titled Tuesday Blitz"]
[Site "Chess.com"]
[Date "2020.09.08"]
[Round "7"]
[White "juli2512"]
[Black "Colombiano07"]
[Result "0-1"]
[WhiteElo "2054"]
[BlackElo "2320"]
[TimeControl "180+1"]
[EndTime "11:19:50 PDT"]
[Termination "Colombiano07 won by resignation"]

1. e4 {[%clk 0:03:00.9]} 1... e6 {[%clk 0:02:56.8]} 2. d4 {[%clk 0:02:58.1]}
2... d5 {[%clk 0:02:56.5]} 3. Nd2 {[%clk 0:02:57.8]} 3... c5 {[%clk 0:02:55.8]}
4. exd5 {[%clk 0:02:57.2]} 4... Qxd5 {[%clk 0:02:34.9]} 5. Ngf3 {[%clk
0:02:56.6]} 5... cxd4 {[%clk 0:02:34.1]} 6. Bc4 {[%clk 0:02:56.9]} 6... Qd7
{[%clk 0:02:33.7]} 7. O-O {[%clk 0:02:54.8]} 7... Nf6 {[%clk 0:02:30.6]} 8. Nb3
{[%clk 0:02:54.5]} 8... Nc6 {[%clk 0:02:30.3]} 9. Nbxd4 {[%clk 0:02:52]} 9...
Nxd4 {[%clk 0:02:31.2]} 10. Qxd4 {[%clk 0:02:51.2]} 10... Qxd4 {[%clk
0:02:28.4]} 11. Nxd4 {[%clk 0:02:51.2]} 11... a6 {[%clk 0:02:29.3]} 12. a4
{[%clk 0:02:50.6]} 12... Bd7 {[%clk 0:02:29.2]} 13. Be2 {[%clk 0:02:37.8]} 13...
Bc5 {[%clk 0:02:28.6]} 14. Nb3 {[%clk 0:02:27.7]} 14... Ba7 {[%clk 0:02:27.6]}
15. Bf3 {[%clk 0:02:27.5]} 15... Bc6 {[%clk 0:02:14.2]} 16. Bxc6+ {[%clk
0:02:26.5]} 16... bxc6 {[%clk 0:02:15.1]} 17. Na5 {[%clk 0:02:25.7]} 17... Rc8
{[%clk 0:02:10.3]} 18. Nc4 {[%clk 0:02:18.8]} 18... O-O {[%clk 0:02:09.4]} 19.
Bg5 {[%clk 0:02:16]} 19... Ne4 {[%clk 0:01:17.6]} 20. Be3 {[%clk 0:02:10]} 20...
Bxe3 {[%clk 0:01:16.8]} 21. Nxe3 {[%clk 0:02:06.8]} 21... Rb8 {[%clk 0:01:17]}
22. b3 {[%clk 0:02:04.6]} 22... Rfd8 {[%clk 0:01:16.6]} 23. Rfd1 {[%clk
0:02:02.1]} 23... Nc3 {[%clk 0:01:16]} 24. Rxd8+ {[%clk 0:01:57.1]} 24... Rxd8
{[%clk 0:01:16.9]} 25. Kf1 {[%clk 0:01:55.6]} 25... Rd2 {[%clk 0:01:15.8]} 26.
a5 {[%clk 0:01:45.7]} 26... Nd5 {[%clk 0:01:14.8]} 27. Nxd5 {[%clk 0:01:40.1]}
27... cxd5 {[%clk 0:01:15.7]} 28. Rc1 {[%clk 0:01:39.5]} 28... Kf8 {[%clk
0:01:14.5]} 29. Ke1 {[%clk 0:01:39.7]} 29... Rd4 {[%clk 0:01:13.6]} 30. c3
{[%clk 0:01:31.7]} 30... Re4+ {[%clk 0:01:11.9]} 31. Kd2 {[%clk 0:01:30.5]}
31... Ke7 {[%clk 0:01:08.8]} 32. f3 {[%clk 0:01:21.3]} 32... Rh4 {[%clk
0:01:05.2]} 33. h3 {[%clk 0:01:21.2]} 33... Kd6 {[%clk 0:01:03.9]} 34. Kd3
{[%clk 0:01:19.2]} 34... e5 {[%clk 0:01:00.9]} 35. b4 {[%clk 0:01:12.7]} 35...
Rc4 {[%clk 0:00:59.5]} 36. Rb1 {[%clk 0:01:08.2]} 36... f5 {[%clk 0:00:54.1]}
37. b5 {[%clk 0:01:05.4]} 37... axb5 {[%clk 0:00:55]} 38. Rxb5 {[%clk
0:01:04.8]} 38... Ra4 {[%clk 0:00:55.8]} 39. g4 {[%clk 0:00:59.5]} 39... g6
{[%clk 0:00:54.6]} 40. gxf5 {[%clk 0:00:54]} 40... gxf5 {[%clk 0:00:55.5]} 41.
Rb7 {[%clk 0:00:52.1]} 41... f4 {[%clk 0:00:51.2]} 42. Rxh7 {[%clk 0:00:50.8]}
42... e4+ {[%clk 0:00:46.3]} 43. fxe4 {[%clk 0:00:50.3]} 43... dxe4+ {[%clk
0:00:46.9]} 44. Ke2 {[%clk 0:00:49.8]} 44... Ra2+ {[%clk 0:00:45.1]} 45. Ke1
{[%clk 0:00:47.6]} 45... Rxa5 {[%clk 0:00:46]} 46. Rh6+ {[%clk 0:00:46.1]} 46...
Ke7 {[%clk 0:00:42.4]} 47. Ke2 {[%clk 0:00:43.8]} 47... Ra2+ {[%clk 0:00:41.7]}
48. Ke1 {[%clk 0:00:43.5]} 48... Rc2 {[%clk 0:00:41.4]} 49. Rc6 {[%clk
0:00:37.4]} 49... Kd7 {[%clk 0:00:39.1]} 50. Rf6 {[%clk 0:00:36.6]} 50... f3
{[%clk 0:00:39.2]} 51. Rf4 {[%clk 0:00:35.1]} 51... Re2+ {[%clk 0:00:37.5]} 52.
Kf1 {[%clk 0:00:34.4]} 52... Ke6 {[%clk 0:00:36.9]} 53. h4 {[%clk 0:00:32.5]}
53... Ke5 {[%clk 0:00:37.3]} 54. Rf8 {[%clk 0:00:31.5]} 54... Rh2 {[%clk
0:00:36.1]} 55. Re8+ {[%clk 0:00:26.9]} 55... Kf4 {[%clk 0:00:30.8]} 56. Rf8+
{[%clk 0:00:26.7]} 56... Ke3 {[%clk 0:00:31.2]} 57. Kg1 {[%clk 0:00:25]} 57...
Rxh4 {[%clk 0:00:30.6]} 58. c4 {[%clk 0:00:25.9]} 58... f2+ {[%clk 0:00:15.4]}
59. Kg2 {[%clk 0:00:24.1]} 59... Rg4+ {[%clk 0:00:07.9]} 60. Kh3 {[%clk
0:00:22.7]} 60... Rg1 {[%clk 0:00:08.8]} 61. c5 {[%clk 0:00:18.3]} 0-1

[Event "*** SCC Grand Prix: Titled Tuesday Blitz"]
[Site "Chess.com"]
[Date "2020.09.08"]
[Round "7"]
[White "kngopal"]
[Black "tmr88"]
[Result "1-0"]
[WhiteElo "2228"]
[BlackElo "2047"]
[TimeControl "180+1"]
[EndTime "11:19:53 PDT"]
[Termination "kngopal won on time"]

1. e4 {[%clk 0:03:00.9]} 1... e5 {[%clk 0:02:59.2]} 2. Nf3 {[%clk 0:03:00.5]}
2... Nc6 {[%clk 0:02:59.5]} 3. Bc4 {[%clk 0:03:00.4]} 3... Bc5 {[%clk
0:02:58.3]} 4. O-O {[%clk 0:03:00.4]} 4... Nf6 {[%clk 0:02:57.9]} 5. d4 {[%clk
0:02:59.1]} 5... Bxd4 {[%clk 0:02:57.2]} 6. Nxd4 {[%clk 0:02:58.2]} 6... Nxd4
{[%clk 0:02:56.9]} 7. f4 {[%clk 0:02:58.4]} 7... d6 {[%clk 0:02:56.7]} 8. fxe5
{[%clk 0:02:57.5]} 8... dxe5 {[%clk 0:02:56.5]} 9. Bg5 {[%clk 0:02:57.4]} 9...
Qe7 {[%clk 0:02:37.6]} 10. Nc3 {[%clk 0:02:53.6]} 10... c6 {[%clk 0:02:30.8]}
11. Bxf6 {[%clk 0:02:51.6]} 11... gxf6 {[%clk 0:02:29.8]} 12. Qh5 {[%clk
0:02:51.2]} 12... Be6 {[%clk 0:02:10.5]} 13. Bxe6 {[%clk 0:02:29.3]} 13... Qxe6
{[%clk 0:02:09.3]} 14. Rf2 {[%clk 0:02:28.9]} 14... Ke7 {[%clk 0:02:00.8]} 15.
Raf1 {[%clk 0:02:26.6]} 15... Rag8 {[%clk 0:01:26.8]} 16. Rxf6 {[%clk
0:01:47.3]} 16... Qxf6 {[%clk 0:01:25.8]} 17. Rxf6 {[%clk 0:01:43.8]} 17... Kxf6
{[%clk 0:01:25.8]} 18. Nd1 {[%clk 0:01:22.9]} 18... Rg5 {[%clk 0:01:19.9]} 19.
Qh6+ {[%clk 0:01:05.9]} 19... Rg6 {[%clk 0:01:13.3]} 20. Qe3 {[%clk 0:01:01.1]}
20... Rhg8 {[%clk 0:01:09.3]} 21. g3 {[%clk 0:01:00.8]} 21... h5 {[%clk
0:01:04.6]} 22. c3 {[%clk 0:00:59.3]} 22... Nb5 {[%clk 0:00:42.9]} 23. Qf3+
{[%clk 0:00:57.4]} 23... Ke7 {[%clk 0:00:40.9]} 24. Qxh5 {[%clk 0:00:56.4]}
24... f6 {[%clk 0:00:41]} 25. Qe2 {[%clk 0:00:52.6]} 25... Nd6 {[%clk
0:00:39.6]} 26. Ne3 {[%clk 0:00:50.5]} 26... Rg5 {[%clk 0:00:26.7]} 27. b4
{[%clk 0:00:38.9]} 27... b5 {[%clk 0:00:26]} 28. c4 {[%clk 0:00:32.5]} 28... a6
{[%clk 0:00:23.4]} 29. cxb5 {[%clk 0:00:26.5]} 29... axb5 {[%clk 0:00:23.2]} 30.
Qc2 {[%clk 0:00:25.1]} 30... Kd7 {[%clk 0:00:20.9]} 31. Qc5 {[%clk 0:00:21.8]}
31... Ra8 {[%clk 0:00:18.8]} 32. Qc2 {[%clk 0:00:11.4]} 32... Ra4 {[%clk
0:00:17.8]} 33. Nf1 {[%clk 0:00:09.9]} 33... Rxb4 {[%clk 0:00:17]} 34. Qd2
{[%clk 0:00:08.4]} 34... Rd4 {[%clk 0:00:16.1]} 35. Qa5 {[%clk 0:00:08.3]} 35...
Nxe4 {[%clk 0:00:15.2]} 36. Qa7+ {[%clk 0:00:08.3]} 36... Ke6 {[%clk 0:00:14.7]}
37. Qc7 {[%clk 0:00:06.7]} 37... Rd6 {[%clk 0:00:13.7]} 38. Qc8+ {[%clk
0:00:06.4]} 38... Kd5 {[%clk 0:00:13.7]} 39. Qa6 {[%clk 0:00:04.2]} 39... Nc5
{[%clk 0:00:13.5]} 40. Qa7 {[%clk 0:00:03]} 40... Ke6 {[%clk 0:00:13.3]} 41.
Qxc5 {[%clk 0:00:02.2]} 41... Kd7 {[%clk 0:00:11.9]} 42. Qa7+ {[%clk 0:00:02.2]}
42... Ke6 {[%clk 0:00:12]} 43. Qc5 {[%clk 0:00:02.9]} 43... Kd7 {[%clk
0:00:11.8]} 44. a4 {[%clk 0:00:03.2]} 44... Rd5 {[%clk 0:00:11]} 45. Qa7+ {[%clk
0:00:03.6]} 45... Kd6 {[%clk 0:00:10.8]} 46. a5 {[%clk 0:00:04.3]} 46... b4
{[%clk 0:00:08.8]} 47. Qb8+ {[%clk 0:00:04.5]} 47... Kc5 {[%clk 0:00:07.3]} 48.
Qb6+ {[%clk 0:00:04.4]} 48... Kc4 {[%clk 0:00:06.6]} 49. a6 {[%clk 0:00:04.6]}
49... Rb5 {[%clk 0:00:06.7]} 50. Qxc6+ {[%clk 0:00:04.8]} 50... Rc5 {[%clk
0:00:05.6]} 51. Qe6+ {[%clk 0:00:03]} 51... Kb5 {[%clk 0:00:05.6]} 52. a7 {[%clk
0:00:03.5]} 52... Rc2 {[%clk 0:00:05.2]} 53. Qd7+ {[%clk 0:00:02.7]} 53... Kb6
{[%clk 0:00:03.6]} 54. a8=Q {[%clk 0:00:03.6]} 1-0